{"text_format":"1","workbook":"xlsx","n_sheets":6,"sheets":["DEPOTS","TOP 20","CATEGORIES DEPOSANTS","REPARTITION REGIONALE","CLASSEMENT BGF","DEPOSANTS PAR DEPARTEMENT"],"not_rendered":{"charts":2,"images":0,"macros":0,"external_links":0,"defined_names":0,"comments":0,"pivot_tables":0},"unopened":[],"bounds":{"document_bytes":16777216,"sheet_cells":100000,"rows_first":2000,"rows_last":500,"rows_between":2000,"halvings":0,"cell_chars":16384,"cell_head_chars":4096},"cells_cut":0,"cells_raw":0,"read":"whole","date_system":"1900"}

{"sheet":"DEPOTS","index":0,"n_rows":5,"n_cols":12,"rows_kept":5,"cut":false,"hidden":false,"merged":[]}
[]
["Nombre de documents de musique imprimée reçus par dépôt légal"]
["Année",2007,2008,2009,2010,2011,2012,2013,2014,2016,2017,2018]
["Dépôts",2205,2161,1501,1661,2501,1667,2461,1908,1771,2121,2232]
["Source : Entrées dépôt légal"]

{"sheet":"TOP 20","index":1,"n_rows":24,"n_cols":20,"rows_kept":24,"cut":false,"hidden":false,"merged":[]}
[]
["Liste des 20 principaux déposants par année de dépôt (2014-2017)"]
[null,null,"Déposant",2014,null,null,"Déposant",2015,null,null,"Déposant",2016,null,null,"Déposant",2017,null,null,"Déposant",2018]
[null,null,"UNIVERSAL MUSIC PUBLISHING",878,null,null,"UNIVERSAL MUSIC PUBLISHING",479,null,null,"UNIVERSAL MUSIC PUBLISHING",738,null,null,"UNIVERSAL MUSIC PUBLISHING",606,null,null,"UNIVERSAL MUSIC PUBLISHING",640]
[null,null,"HENRY LEMOINE",375,null,null,"DELATOUR FRANCE",154,null,null,"DELATOUR FRANCE",147,null,null,"HENRY LEMOINE",209,null,null,"PIERRE LAFITAN",234]
[null,null,"PIERRE LAFITAN",267,null,null,"PIERRE LAFITAN",134,null,null,"HENRY LEMOINE",99,null,null,"LA BOITE A CHANSONS",178,null,null,"MUSIQUES EN FLANDRE",140]
[null,null,"DELATOUR FRANCE",147,null,null,"LA BOITE A CHANSONS",115,null,null,"INTERNATIONAL MUSIC DIFFUSION",78,null,null,"PIERRE LAFITAN",163,null,null,"LA BOÎTE À CHANSONS ",127]
[null,null,"LA BOITE A CHANSONS",123,null,null,"INTERNATIONAL MUSIC DIFFUSION",82,null,null,"ROBERT MARTIN",72,null,null,"MUSIQUES EN FLANDRE",153,null,null,"HENRY LEMOINE",104]
[null,null,"ROBERT MARTIN",86,null,null,"GÉRARD BILLAUDOT",80,null,null,"LA BOITE A CHANSONS",56,null,null,"EDITIONS MUSICALES RUBIN",127,null,null,"MAISON ONA",88]
[null,null,"GÉRARD BILLAUDOT",64,null,null,"ROBERT MARTIN",78,null,null,"SEMPRE PIU EDITIONS",53,null,null,"DELATOUR FRANCE",68,null,null,"À CŒUR JOIE",76]
[null,null,"SEMPRE PIÙ ÉDITIONS",61,null,null,"SEMPRE PIÙ ÉDITIONS",49,null,null,"A CŒUR JOIE",47,null,null,"SEMPRE PIU EDITIONS",62,null,null,"GERARD BILLAUDOT",73]
[null,null,"A COEUR JOIE",54,null,null,"ÉDITIONS FRANÇOIS DHALMANN",46,null,null,"EDITIONS 75",42,null,null,"GERARD BILLAUDOT",55,null,null,"INTERNATIONAL MUSIC DIFFUSION",67]
[null,null,"SYMÉTRIE",45,null,null,"A COEUR JOIE",46,null,null,"REMONTER LA RIVIERE",39,null,null,"EDITIONS DA CAMERA",51,null,null,"ROBERT MARTIN",53]
[null,null,"ÉDITIONS FRANÇOIS DHALMANN",36,null,null,"PEERMUSIC",45,null,null,"LE CHANT DU MONDE",35,null,null,"ROBERT MARTIN",38,null,null,"DELATOUR FRANCE",49]
[null,null,"LES CAHIERS DU TOURDION",28,null,null,"MUSIQUES EN FLANDRE",44,null,null,"HAL LEONARD MGB",27,null,null,"À CŒUR JOIE",36,null,null,"HAL LEONARD MGB",41]
[null,null,"LES EDITIONS BUISSONNIERES",22,null,null,"HENRY LEMOINE",43,null,null,"SALABERT",24,null,null,"REMONTER LA RIVIERE",29,null,null,"SEMPRE PIU",39]
[null,null,"CENTRE MUSIQUE BAROQUE VERSAILLES",20,null,null,"ALFONCE PRODUCTION",40,null,null,"OUSTALOT",23,null,null,"HAL LEONARD MGB",29,null,null,"ZABAK PRODUCTIONS",35]
[null,null,"ÉDITIONS MUSICALES FORTIN",20,null,null,"ASSOCIATION KLARTHE",35,null,null,"SYMETRIE",22,null,null,"ALPHONSE LEDUC",22,null,null,"EDITIONS BUISSONNIERES",34]
[null,null,"COMBRE",18,null,null,"DURAND",29,null,null,"LES EDITIONS BUISSONNIERES",21,null,null,"EDITIONS BUISSONNIERES",22,null,null,"EDITIONS DA CAMERA",31]
[null,null,"LE CHANT DU MONDE",17,null,null,"SYMÉTRIE",24,null,null,"CENTRE MUSIQUE BAROQUE VERSAILLES",19,null,null,"ILL AUX ROSEAUX",16,null,null,"AÈDE MUSIC",26]
[null,null,"DURAND",15,null,null,"EDITIONS DU PETIT PAGE",24,null,null,"YLC FLUTE ASSOCIATION",15,null,null,"SYMETRIE",16,null,null,"ÉDITIONS AD LIBITUM",19]
[null,null,"BRASAVEL",13,null,null,"IEMJ (EDITIONS DE L')",23,null,null,"LE LUTH DORE",12,null,null,"MEZZA VOCCE",11,null,null,"W48 MUSIC",19]
[null,null,"ILL AUX ROSEAUX",12,null,null,"W48 MUSIC",20,null,null,"LES EDITIONS MUSICALES ARCHIPEL",10,null,null,"IN NOMINE",11,null,null,"AGIR ÉDITIONS",18]
[null,"Total 20 premiers éditeurs",null,{"$f":"SUM(D4:D23)","v":2301},null,"Total 20 premiers éditeurs",null,{"$f":"SUM(H4:H23)","v":1590},null,"Total 20 premiers éditeurs",null,{"$f":"SUM(L4:L23)","v":1579},null,"Total 20 premiers éditeurs",null,{"$f":"SUM(P4:P23)","v":1902},null,"Total 20 premiers éditeurs",null,{"$f":"SUM(T4:T23)","v":1913}]

{"sheet":"CATEGORIES DEPOSANTS","index":2,"n_rows":19,"n_cols":16,"rows_kept":19,"cut":false,"hidden":false,"merged":[]}
[]
["Nombre de dépôt et déposants musique imprimée par catégorie déposant (2014-2018)"]
["DL Musique éditeur",2014,null,null,2015,null,null,2016,null,null,2017,null,null,2018]
["Catégorie déposant","Nb déposants","Nb nouveaux déposants","nb dépôts","Nb déposants","Nb nouveaux déposants","nb dépôts","Nb déposants","Nb nouveaux déposants","nb dépôts","Nb déposants","Nb nouveaux déposants","nb dépôts","Nb déposants","Nb nouveaux déposants","nb dépôts"]
["Associations et assimilés",14,6,32,16,6,78,10,0,36,10,2,46,6,1,56]
["Auteurs auto-édités",19,6,40,21,6,54,14,2,88,9,1,16,22,14,49]
["Collectivité locale",0,0,0,0,0,0,0,0,0,0,0,0,0,0,0]
["Collectivités publiques",1,0,1,2,1,3,0,0,0,0,0,0,0,0,0]
["Déposants réguliers/occasionnels",14,3,143,18,6,220,14,9,89,6,6,54,22,13,378]
["(Déposant étranger)",0,0,0,1,1,1,0,0,0,0,0,0,0,0,0]
["(Diffuseur)",0,0,0,1,1,1,1,1,27,1,0,1,0,0,0]
["Editeurs étrangers",1,1,1,0,0,0,0,0,0,0,0,0,0,0,0]
["Editeurs professionnels",41,5,2240,42,8,1546,41,13,1504,18,5,1989,33,16,1738]
["Imprimeurs professionnels",0,0,0,null,null,null,0,0,0,0,0,0,0,0,0]
["Personne physique",1,0,4,1,0,4,1,0,7,2,1,14,3,1,11]
["Sociétés et assimilés",0,0,0,null,null,null,0,0,0,1,0,1,0,0,0]
["(Pas de catégorie de déposant)",null,null,null,1,1,1,1,1,1,0,0,0,0,0,0]
["Total DL Musique éditeur",{"$f":"SUM(B5:B16)","v":91},{"$f":"SUM(C5:C16)","v":21},{"$f":"SUM(D5:D16)","v":2461},{"$f":"SUM(E5:E17)","v":103},{"$f":"SUM(F5:F17)","v":30},{"$f":"SUM(G5:G17)","v":1908},94,39,1771,{"$f":"SUM(K5:K17)","v":47},15,2121,86,45,2232]
["Source : Entrées dépôt légal"]

{"sheet":"REPARTITION REGIONALE","index":3,"n_rows":72,"n_cols":12,"rows_kept":72,"cut":false,"hidden":false,"merged":[]}
["Nombre de dépôt et déposants musique imprimée par région (2016-2018)"]
[]
[]
[null,"Département","Nb déposants","Nb dépôts",null,null,2016,null,2017,null,2018]
[null,"Ardèche",1,49,null,null,"Nb déposants","Nb dépôts","Nb déposants","Nb dépôts","Nb déposants","Nb dépôts"]
[null,"Puy-de-Dôme",1,2,null,"Auvergne - Rhône Alpes",13,258,11,277,8,182]
[null,"Rhône",6,131,null,"Bourgogne - Franche-Comté",4,75,4,91,6,96]
[null,"Auvergne-Rhône Alpes",{"$f":"SUM(C5:C7)","v":8},{"$f":"SUM(D5:D7)","v":182},null,"Bretagne",4,35,6,26,2,35]
[null,null,null,null,null,"Centre - Val-de-Loire",5,11,8,22,10,29]
[null,"Côte d'Or",1,3,null,"Grand Est",4,38,6,49,2,55]
[null,"Doubs",1,6,null,"Hauts-de-France",3,6,4,165,6,141]
[null,"Jura",1,1,null,"Ile-de-France",43,1184,30,1273,2,1504]
[null,"Saône-et-Loire",3,86,null,"Normandie",3,30,8,4,54,5]
[null,"Bourgogne-Franche Comté",{"$f":"SUM(C10:C13)","v":6},{"$f":"SUM(D10:D13)","v":96},null,"Nouvelle-Aquitaine",2,23,6,20,2,30]
[null,null,null,null,null,"Occitanie",4,5,4,4,5,12]
[null,"Côte d'Armor",1,1,null,"Provence-Alpes-Côte d'Azur",5,74,3,182,4,138]
[null,"Finistère",1,34,null,"Outre-Mer",0,0,1,1,7,5]
[null,"Bretagne",{"$f":"SUM(C16:C17)","v":2},{"$f":"SUM(D16:D17)","v":35},null,"Importation",1,4,3,11,0,0]
[null,null,null,null,null,"Total",{"$f":"SUM(G6:G18)","v":91},{"$f":"SUM(H6:H18)","v":1743},94,2125,108,2232]
[null,"Eure",1,3]
[null,"Eure-et-Loire",1,3,null,"Auvergne - Rhône Alpes",8]
[null,"Indre-et-Loire",1,4,null,"Bourgogne - Franche-Comté",6]
[null,"Loire Atlantique",2,13,null,"Bretagne",2]
[null,"Loiret",1,1,null,"Centre - Val-de-Loire",10]
[null,"Maine-et-Loire",2,3,null,"Grand Est",2]
[null,"Mayenne",1,1,null,"Hauts-de-France",6]
[null,"Sarthe",1,1,null,"Ile-de-France",2]
[null,"Centre-Val de Loire",{"$f":"SUM(C20:C27)","v":10},{"$f":"SUM(D20:D27)","v":29},null,"Normandie",54]
[null,null,null,null,null,"Nouvelle-Aquitaine",2]
[null,"La Réunion",1,1,null,"Occitanie",5]
[null,"Martinique",1,4,null,"Provence-Alpes-Côte d'Azur",4]
[null,"Département et région d'Outre mer",{"$f":"SUM(C30:C31)","v":2},{"$f":"SUM(D30:D31)","v":5},null,"Outre-Mer",7]
[]
[null,"Bas-Rhin",1,3,null,"Auvergne - Rhône Alpes",182]
[null,"Haut-Rhin",2,43,null,"Bourgogne - Franche-Comté",96]
[null,"Meurthe-et-Moselle",1,6,null,"Bretagne",35]
[null,"Territoire de Belfort ",1,2,null,"Centre - Val-de-Loire",29]
[null,"Vosges",1,1,null,"Grand Est",55]
[null,"Grand Est",{"$f":"SUM(C34:C38)","v":6},{"$f":"SUM(D34:D38)","v":55},null,"Hauts-de-France",141]
[null,null,null,null,null,"Ile-de-France",1504]
[null,"Nord",2,140,null,"Normandie",5]
[null,"Oise",1,1,null,"Nouvelle-Aquitaine",30]
[null,"Hauts de France",{"$f":"SUM(C41:C42)","v":3},{"$f":"SUM(D41:D42)","v":141},null,"Occitanie",12]
[null,null,null,null,null,"Provence-Alpes-Côte d'Azur",138]
[null,"Essonne",2,20,null,"Outre-Mer",5]
[null,"Hauts-de-Seine ",4,13]
[null,"Paris",32,1159,null,"Essonne",2]
[null,"Seine-et-Marne",3,13,null,"Hauts-de-Seine ",4]
[null,"Seine-St-Denis",4,17,null,"Paris",32]
[null,"Val-de-Marne",4,19,null,"Seine-et-Marne",3]
[null,"Val-d'Oise",1,235,null,"Seine-St-Denis",4]
[null,"Yvelines",3,28,null,"Val-de-Marne",4]
[null,"Île de France",{"$f":"SUM(C45:C52)","v":53},{"$f":"SUM(D45:D52)","v":1504},null,"Val-d'Oise",1]
[null,null,null,null,null,"Yvelines",3]
[null,"Manche",2,5]
[null,"Normandie",{"$f":"SUM(C55)","v":2},{"$f":"SUM(D55)","v":5}]
[]
[null,"Gironde",3,24]
[null,"Pyrénées Atlantiques",2,6]
[null,"Nouvelle Aquitaine",{"$f":"SUM(C58:C59)","v":5},{"$f":"SUM(D58:D59)","v":30}]
[]
[null,"Gard",1,1]
[null,"Haute Garonne",1,1]
[null,"Hérault",1,9]
[null,"Tarn",1,1]
[null,"Occitanie",{"$f":"SUM(C62:C65)","v":4},{"$f":"SUM(D62:D65)","v":12}]
[]
[null,"Alpes de Haute Provence",1,1]
[null,"Alpes-maritimes",1,3]
[null,"Bouches-du-Rhône",4,7]
[null,"Hautes Alpes",1,127]
[null,"Provence-Alpes-Côte d'Azur",{"$f":"SUM(C68:C71)","v":7},{"$f":"SUM(D68:D71)","v":138}]

{"sheet":"CLASSEMENT BGF","index":4,"n_rows":42,"n_cols":9,"rows_kept":42,"cut":false,"hidden":false,"merged":[]}
[]
["Notices de partitions parues dans la Bibliographie nationale française"]
[null,2014,2015,2016,2017,2018,null,"Répartition par catégories"]
["Œuvres instrumentales ",null,null,null,null,null,null,"Œuvres instrumentales ",944]
["000. œuvres instrumentales",0,0,0,0,0,null,"Œuvres vocales",1063]
["010. orchestre",97,21,45,38,51,null,"Œuvres scéniques   ",37]
["020. instrument(s) soliste(s) et orchestre",41,31,27,31,32,null,"Œuvres théoriques",1]
["030. musique de chambre",623,511,363,481,541,null,"Œuvres pédagogiques",85]
["040. instrument soliste",1," ",3,3,0,null,"Autres œuvres  musicales",39]
["041. instrument soliste à vent",52,28,14,30,46,null,"Total général",{"$f":"SUM(I4:I9)","v":2169}]
["042. instrument soliste à cordes",55,58,65,63,59]
["043. instrument soliste à clavier",228,101,114,124,158]
["044. instrument soliste à percussion",8,4,1,4,5]
["045. instrument soliste indéterminé",0,0,0,0,21]
["050. musique électroacoustique",16,2,4,21,31]
["Œuvres vocales (avec ou sans accompagnement) "]
["100. œuvres vocales (avec ou sans accompagnement)",6,1,2,0,2]
["110. œuvres vocales sacrées",1,0,0,0,0]
["111. œuvres vocales sacrées (1 ou 2 voix solistes)",11,13,4,10,15]
["112. œuvres vocales sacrées (ensembles vocaux)",73,49,44,65,126]
["120. œuvres vocales profanes",1," ",0,0,0]
["121. œuvres vocales profanes (1 ou 2 voix solistes)",955,409,682,650,670]
["122. œuvres vocales profanes (ensembles vocaux)",252,204,127,357,219]
["130. œuvres vocales pour enfants",67,8,21,13,31]
["Œuvres scéniques   "," "," "," "]
["200. œuvres scéniques",1,0,1,0,1]
["210. opéra",27,25,21,26,36]
["220. ballet",1,0,0,0,0]
["230. musique de scène",2,0,0,0,0]
["240. musique de film",8,0,0,0,0]
["250. œuvres scéniques pour enfants",5,0,0,1,0]
["Œuvres théoriques  "]
["300. œuvres théoriques",8,7,0,1,1]
["Œuvres pédagogiques"]
["400. œuvres pédagogiques",49,36,65,54,85]
["Collections"]
["700. collections",16,15,14,13,12]
["Autres œuvres musicales "]
["800. œuvres de genres divers",5,4,1,1,1]
["850. œuvres de genre indéterminé",109,53,66,66,38]
["Total général",{"$f":"SUM(B5:B40)","v":2718},{"$f":"SUM(C5:C40)","v":1580},{"$f":"SUM(D5:D40)","v":1684},{"$f":"SUM(E5:E40)","v":2052},{"$f":"SUM(F5:F40)","v":2181}]
["Source : Bibliographie nationale française - Musique imprimée"]

{"sheet":"DEPOSANTS PAR DEPARTEMENT","index":5,"n_rows":0,"n_cols":0,"rows_kept":0,"cut":false,"hidden":false,"merged":[]}